Workbook

Sheet 1
A1: .07 | B1: ГБОУ "Татарско -Елтанская школа -интернат для детей с ОВЗ" | E1: Отд./корп | I1: День | J1: 2025-02-04
A3: Прием пищи | B3: Раздел | C3: № рец. | D3: Блюдо | E3: Выход, г | F3: Цена | G3: Калорийность | H3: Белки | I3: Жиры | J3: Углеводы | M3: ,
A4: Завтрак | B4: гор.блюдо | D4: омлет натуральный | E4: 200 | F4: 12.32 | G4: 345.7 | H4: 19 | I4: 28.3 | J4: 13.5
B5: гор.напиток | D5: кофейный напиток с молоком | E5: 200 | F5: 16.83 | G5: 100 | H5: 3.7 | I5: 2.6 | J5: 15.9
B6: хлеб | D6: бутерброд с сливочным маслом | E6: 30*20*20 | F6: 6.66 | G6: 220 | H6: 2.02 | I6: 16.6 | J6: 15.2
B7: хлеб | D7: хлеб пшеничный | E7: 70 | F7: 4.62 | G7: 164 | H7: 4.72 | I7: 0.57 | J7: 35.9
F8: =SUM(F4:F7) -> 40.43 | G8: =SUM(G4:G7) -> 830.3 | H8: =SUM(H4:H7) -> 29.44 | I8: =SUM(I4:I7) -> 48.07 | J8: =SUM(J4:J7) -> 80.5
B9: фрукты | D9: яблоко | E9: 120 | F9: 10.83 | G9: 66 | H9: 0.6 | I9: 0.6 | J9: 14.7
B10: сок | D10: сок фруктовый | E10: 200 | F10: 12.80 | G10: 106 | H10: 5.8 | I10: 5 | J10: 8
B11: кондит.изд | D11: печенье | E11: 20 | F11: 2.13 | G11: 190 | H11: 3.38 | I11: 3.77 | J11: 16
F12: =SUM(F9:F11) -> 25.76 | G12: =SUM(G9:G11) -> 362 | H12: 5.64 | I12: =SUM(I9:I11) -> 9.37 | J12: =SUM(J9:J11) -> 38.7
A13: Обед
B14: 1 блюдо | D14: щи из свеж.капусты м/к бул.со сметаной | E14: 200*15*10 | F14: 12.63 | G14: 83.8 | H14: 2.15 | I14: 2.27 | J14: 13.71
B15: гарнир | D15: рис отварной | E15: 150 | F15: 5.67 | G15: 209.7 | H15: 3.65 | I15: 5.37 | J15: 36.7
B16: птица | D16: птица тушеная в соусе | E16: 100 | F16: 21.62 | G16: 141 | H16: 7.86 | I16: 7.98 | J16: 9.32
B17: гор.напиток | D17: компот из сухофруктов | E17: 200 | F17: 2.47 | G17: 158 | H17: 0.95 | I17: 0 | J17: 37.1
B18: хлеб пшен. | D18: хлеб пшеничный | E18: 50 | F18: 2.65 | G18: 117 | H18: 3 | I18: 0 | J18: 25
B19: хлеб черн. | D19: хлеб ржаной | E19: 100 | F19: 5.50 | G19: 228.2 | H19: 5.56 | I19: 1.13 | J19: 49
F20: =SUM(F13:F19) -> 50.54 | G20: =SUM(G13:G19) -> 938 | H20: =SUM(H13:H19) -> 24 | I20: =SUM(I13:I19) -> 17 | J20: =SUM(J13:J19) -> 171
A21: Полдник | B21: выпечка | D21: сырник из творога | E21: 150 | F21: 66.51 | G21: 396 | H21: 26 | I21: 20 | J21: 27
B22: гор.напиток | D22: компот из свежих яблок | E22: 200 | F22: 2.47 | G22: 92.9 | H22: 0 | I22: 0.00 | J22: 23.3
B23: фрукты | D23: апельсин | E23: 130 | F23: 12.50 | G23: 66 | H23: 0.6 | I23: 0.6 | J23: 14.7 | L23: 4
F24: =SUM(F21:F23) -> 81.48 | G24: =SUM(G21:G23) -> 555 | H24: =SUM(H21:H23) -> 26.6 | I24: =SUM(I21:I23) -> 20.6 | J24: =SUM(J21:J23) -> 65
A25: Ужин | B25: закуска | D25: салат из соленых огурцов и лука | E25: 60 | F25: 5.23 | G25: 1 | H25: 3.07 | I25: 1.57 | J25: 2.61
B26: 2 блюда | D26: жаркое по домашнему | E26: 200 | F26: 42.20 | G26: 337.1 | H26: 18.5 | I26: 20.7 | J26: 18.9
B27: хлеб | D27: хлеб ржаной | E27: 50 | F27: 2.75 | G27: 114.2 | H27: 2.78 | I27: 0.57 | J27: 24.7
B28: гор.напиток | D28: чай с молоком | E28: 200 | F28: 2.46 | G28: 86 | H28: 1.4 | I28: 1.6 | J28: 16.4
B29: хлеб | D29: хлеб пшеничный | E29: 50 | F29: 2.65 | G29: 117 | H29: 0.41 | I29: 3.38 | J29: 25.00
B31: кисломолоч | D31: кефир | E31: 200 | F31: 19.31 | G31: 106 | H31: 5.8 | I31: 5 | J31: 8
F32: =SUM(F25:F31) -> 74.60 | G32: =SUM(G25:G31) -> 761 | H32: =SUM(H25:H31) -> 31.96 | I32: =SUM(I25:I31) -> 32.82 | J32: =SUM(J25:J31) -> 95.61
F33: =SUM(F32,F24,F20,F12,F8) -> 272.81 | G33: =SUM(G32,G24,G20,G12,G8) -> 3446 | H33: 99.58 | I33: =SUM(I32,I24,I20,I12,I8) -> 128 | J33: =SUM(J32,J24,J20,J12,J8) -> 451

Sheet Лист1
A1: .07 | B1: ГБОУ "Татарско -Елтанская школа -интернат для детей с ОВЗ" | E1: Отд./корп | I1: День | J1: 2023-11-22
A3: Прием пищи | B3: Раздел | C3: № рец. | D3: Блюдо | E3: Выход, г | F3: Цена | G3: Калорийность | H3: Белки | I3: Жиры | J3: Углеводы
A4: Завтрак | B4: гор.блюдо | D4: каша молочная манная | E4: 200 | F4: 11.31 | G4: 251 | H4: 6.11 | I4: 10.7 | J4: 32.58
B5: гор.напиток | D5: кофейный напиток с молоком | E5: 200 | F5: 16.85 | G5: 106 | H5: 3.7 | I5: 2.6 | J5: 15.9
B6: хлеб | D6: бутерброд с сливочным маслом | E6: 30*20 | F6: 6.66 | G6: 220 | H6: 2.02 | I6: 16.6 | J6: 15.2
B7: хлеб | D7: хлеб пшеничный | E7: 70 | F7: 4.62 | G7: 164 | H7: 4.72 | I7: 0.57 | J7: 35.9
F8: 39.44 | G8: 741 | H8: 16.55 | I8: 30.47 | J8: 99.58
B9: фрукты | D9: яблоко | E9: 120 | F9: 10.80 | G9: 142 | H9: 2.26 | I9: 0.76 | J9: 28.5
B10: сок | D10: сок фруктовый | E10: 200 | F10: 12.80 | G10: 84.8 | H10: 1 | I10: 0 | J10: 20
B11: кондит.изд | D11: вафля | E11: 20 | F11: 1.82 | G11: 190 | H11: 3.38 | I11: 3.77 | J11: 16
A12: Обед
B13: 1 блюдо | D13: щи из свеж капусты м*к бул со сметаной | E13: 200*15*10 | F13: 14.84 | G13: 67.8 | H13: 1.4 | I13: 4.89 | J13: 6.7
B14: гарнир | D14: рис отварной | E14: 150 | F14: 5.67 | G14: 209.7 | H14: 3.65 | I14: 5.37 | J14: 36.7
B15: птица | D15: птица тушеная в соусе | E15: 100 | F15: 56.76 | G15: 141 | H15: 7.86 | I15: 7.98 | J15: 9.32
B16: гор.напиток | D16: компот из сухофруктов | E16: 200 | F16: 2.47 | G16: 158 | H16: 0.95 | I16: 0 | J16: 37.1
B17: хлеб пшен. | D17: хлеб пшеничный | E17: 50 | F17: 2.65 | G17: 117 | H17: 3 | I17: 0 | J17: 25
B18: хлеб черн. | D18: хлеб ржаной | E18: 100 | F18: 5.50 | G18: 228.2 | H18: 5.56 | I18: 1.13 | J18: 49
F20: 87.89 | G20: 922 | H20: 30.28 | I20: 19.37 | J20: 163.82
A21: Полдник | B21: выпечка | D21: сырник из творога | E21: 150 | F21: 66.51 | G21: 396 | H21: 26 | I21: 20 | J21: 27
B22: гор.напиток | D22: компот из свежих яблок | E22: 200 | F22: 4.44 | G22: 92.9 | H22: 0 | I22: 0.00 | J22: 23.3
B23: фрукты | D23: апельсин | E23: 150 | F23: 13.20 | G23: 142 | H23: 2.26 | I23: 0.76 | J23: 28.5
F24: 84.15 | G24: 631 | H24: 28.26 | I24: 20.76 | J24: 78.8
A25: Ужин | B25: закуска | D25: салат из свеклы с сыром и чесноком | E25: 60 | F25: 6.87 | G25: 46 | H25: 0.7 | I25: 2.9 | J25: 4.3
B26: 2 блюда | D26: жаркое по домашнему | E26: 200 | F26: 42.20 | G26: 337.1 | H26: 18.5 | I26: 20.7 | J26: 18.9
B27: хлеб | D27: хлеб ржаной | E27: 50 | F27: 2.75 | G27: 114.2 | H27: 2.78 | I27: 0.57 | J27: 24.7
B28: гор.напиток | D28: чай с молоком | E28: 200 | F28: 2.47 | G28: 86 | H28: 1.4 | I28: 1.6 | J28: 16.4
B29: хлеб | D29: хлеб пшеничный | E29: 50 | F29: 2.65 | G29: 117 | H29: 0.41 | I29: 3.38 | J29: 25.00
B30: кисломолоч | D30: ряженка | E30: 200 | F30: 19.31 | G30: 105 | H30: 5.8 | I30: 5 | J30: 8
F31: 76.25 | G31: 860 | H31: 34.39 | I31: 34.12 | J31: 101.1
F32: 313.15 | G32: 3570.8 | H32: 106.9 | I32: 110.75 | J32: 541.58
